Workbook

Sheet 1. Forside
A1: Sønderborg Spildevandsforsyning A/S
D8: Bilag A
D13: Indholdsfortegnelse
C16: Fane nr. 2 | D16: Samlet prisloft
C17: Fane nr. 3 | D17: Driftsomkostninger
C18: Fane nr. 4 | D18: Historiske investeringer
C19: Fane nr. 5 | D19: Gennemførte investeringer
C20: Fane nr. 6 | D20: Korrektion investeringer
C21: Fane nr. 7 | D21: Planlagte investeringer
C22: Fane nr. 8 | D22: 1:1 omkostninger
C23: Fane nr. 9 | D23: Miljø- og servicemål
C24: Fane nr. 10 | D24: Klimatilpasning
C25: Fane nr. 11 | D25: Nettofinansielle poster
C26: Fane nr. 12 | D26: Over- eller underdækning
C27: Fane nr. 13 | D27: Kontrol med indtægtsrammen og oversigt over ekstraordinære effektiviseringsgevinster

Sheet 2. Samlet prisloft
A1: ='1. Forside'!A1 -> Sønderborg Spildevandsforsyning A/S
B4: Fane 2. Samlet prisloft for 2015
B6: Driftsomkostninger
B7: Korrigerede driftsomkostninger i prisloftet for 2014 | C7: ='3. Driftsomkostninger'!C24 -> 53930454.16 | D7: kr.
B8: Bortfald af væsentlige omkostninger | C8: =-'3. Driftsomkostninger'!C29 -> 0 | D8: kr.
B9: Korrektion for periodevise driftsomkostninger | C9: ='3. Driftsomkostninger'!C35 -> -123530.46 | D9: kr.
B10: Korrektion for prisudviklingen 2014-2015 | C10: ='3. Driftsomkostninger'!C41 -> 43045.53896 | D10: kr.
B11: Forhøjelse til effektivt niveau iht. benchmarkingen | C11: ='3. Driftsomkostninger'!C47 -> 0 | D11: kr.
B12: Korrektion for generelt effektiviseringskrav | C12: =-'3. Driftsomkostninger'!C53 -> -236750.4643 | D12: kr.
B13: Korrektion for individuelt effektiviseringskrav | C13: =-'3. Driftsomkostninger'!C62 -> -2690346.185 | D13: kr.
B14: Driftsomkostninger i alt | C14: =SUM(C7:C13) -> 50922872.59 | D14: kr. | E14: =C14 -> 50922872.59 | F14: kr.
B15: Investeringer
B16: Tillæg for historiske investeringer | C16: ='4. Historiske investeringer'!C9 -> 81308435.54 | D16: kr.
B17: Tillæg for gennemførte investeringer i 2011-2013 | C17: ='5. Gennemførte investeringer'!F23 -> 7383132.93 | D17: kr.
B18: Korrektion af tillæg for planlagte investeringer vedrørende 2013 | C18: ='6. Korrektion investeringer'!C10 -> 176277.3867 | D18: kr.
B19: Tillæg for planlagte investeringer i 2014 og 2015 | C19: ='7. Planlagte investeringer'!F20 -> 4867140.887 | D19: kr.
B20: Investeringstillæg i alt | C20: =SUM(C16:C19) -> 93734986.74 | D20: kr. | E20: =C20 -> 93734986.74 | F20: kr.
B21: Øvrige omkostninger mv.
B22: Tillæg for 1:1 omkostninger i 2015 | C22: ='8. 1-1 omkostninger'!C13 -> 7587029 | D22: kr.
B23: Tillæg vedr. revisorerklæringer og DANVA/FVD-kontingent | C23: ='8. 1-1 omkostninger'!C19 -> 129748 | D23: kr.
B24: Korrektion ift. faktiske 1:1 omkostninger i 2013 | C24: ='8. 1-1 omkostninger'!C25 -> 1628394 | D24: kr.
B25: Tillæg for driftsomkostninger til miljø- og servicemål i 2015 | C25: ='9. Miljø- og servicemål'!C8 -> 0 | D25: kr.
B26: Korrektion ift. faktiske driftsomkostninger til miljø- og servicemål i 2013 | C26: ='9. Miljø- og servicemål'!C14 -> 0 | D26: kr.
B27: Tillæg for driftsomkostninger til medfinansiering af klimatilpasningsprojekter i 2015 | C27: ='10. Klimatilpasning'!C9 -> 0 | D27: kr.
B28: Korrektion ift. faktiske omkostninger til medfinansiering af klimatilpasningsprojekter i 2013 | C28: ='10. Klimatilpasning'!C15 -> 0 | D28: kr.
B29: Tillæg/fradrag for nettofinansielle poster i 2015 | C29: ='11. Nettofinansielle poster'!C9 -> 772406 | D29: kr.
B30: Korrektion ift. faktiske nettofinansielle poster i 2013 | C30: ='11. Nettofinansielle poster'!C15 -> 176280 | D30: kr.
B31: Øvrige omkostninger mv. i alt | C31: =SUM(C22:C30) -> 10293857 | D31: kr. | E31: =C31 -> 10293857 | F31: kr.
B32: Historisk over- eller underdækning
B33: Tillæg/fradrag for over- eller underdækning til og med 2010 | C33: ='12. Over- eller underdækning'!C11 -> 2035827.124 | D33: kr. | E33: =C33 -> 2035827.124 | F33: kr.
B34: Korrektion i forhold til tidligere indtægtsramme
B35: Korrektion for overholdelse af indtægtsramme i prisloft 2013 | C35: ='13. Kontrol med indtægtsrammen'!E27 -> 26540061.7 | D35: kr. | E35: =C35 -> 26540061.7 | F35: kr.
B36: Samlet prisloft
B37: Indtægtsramme i 2015 | E37: =SUM(E14:E35) -> 183527605.2 | F37: kr.
B38: Debiteret vandmængde i 2013 | E38: 3302618 | F38: m3
B39: Prisloft 2015 | E39: =E37/E38 -> 55.57034 | F39: kr./m3

Sheet 3. Driftsomkostninger
A1: ='1. Forside'!A1 -> Sønderborg Spildevandsforsyning A/S
B4: Fane 3. Driftsomkostninger
B6: Driftsomkostningerne i prisloftet for 2014
B7: Korrigerede driftsomkostninger i prisloftet for 2013 (DOiPL 2013) | C7: 62284852.37 | D7: kr.
B8: inkl. tillæg iht. § 8, stk. 2, pkt. 1 på 804.852 kr.
B9: samt midlertidigt tillæg iht. § 8, stk. 5 på 6.204.976 kr.
B10: Prisfremskrivning 1,5 pct. | C10: =0.015*SUM(C7) -> 934272.7855 | D10: kr.
B11: Generelt effektiviseringskrav (0 pct.) | C11: 0 | D11: kr.
B12: Korrektion af periodevise driftsomkostninger iht. § 8, stk. 2 | C12: -312980 | D12: kr.
B13: Individuelt effektiviseringskrav | C13: -2803994 | D13: kr.
B14: Bortfald af midlertidigt tillæg inkl. prisfremskrivning, § 8, stk. 5 | C14: =-6204976*1.015 -> -6298050.64 | D14: kr.
B15: Driftsomkostningerne i prisloftet for 2014 | C15: =SUM(C7:C14)-C9 -> 53804100.51 | D15: kr.
B16: Udtræk af korrektion af periodevise driftsomkostninger | C16: 312980 | D16: kr.
B17: Driftsomkostningerne i prisloftet for 2014 (DOiPL 2014) | C17: =C15+C16 -> 54117080.51 | D17: kr.
B20: Forskel i § 8, stk. 2, pkt. 1 - tillæg
B21: Godkendt tillæg i PL2014 prisfremskrevet til 2014-niveau | C21: 816924.78 | D21: kr.
B22: Godkendt tillæg i PL2015 prisfremskrevet til 2014-niveau | C22: 630298.4271 | D22: kr.
B23: Forskel | C23: =C22-C21 -> -186626.3529 | D23: kr.
B24: Korrigerede driftsomkostninger i prisloftet for 2014 | C24: =C17+C23 -> 53930454.16 | D24: kr.
B27: Korrektion for forventet bortfald af væsentlige omkostninger
B28: Selskabets indberettede bortfald af væsentlige omkostninger inden 2015 | C28: 0 | D28: kr.
B29: Korrektion for forventet bortfald | C29: =SUM(C28:C28) -> 0 | D29: kr.
B32: Korrektion for periodevise driftsomkostninger
B33: Del af godkendt tillæg i PL2013 vedrørende omkostninger i 2013 | C33: 764315 | D33: kr.
B34: Faktisk udgift til periodevise driftsomkostninger i 2013 | C34: 640784.54 | D34: kr.
B35: Korrektion for periodevise driftsomkostninger | C35: =C34-C33 -> -123530.46 | D35: kr.
B38: Korrektion for prisudviklingen fra 2014-2015
B39: Driftsomkostningerne i prisloftet for 2014 | C39: =C24-C29+C35 -> 53806923.7 | D39: kr.
B40: Prisudvikling 2014 - 2015 | C40: 0.08 | D40: pct.
B41: Korrektion for prisudvikling | C41: =C39*(C40/100) -> 43045.53896 | D41: kr.
B44: Eventuel forhøjelse til effektivt niveau iht. benchmarkingen
B45: Selskabets effektive driftsomkostninger iht. benchmarkingen | C45: 35528711.41 | D45: kr.
B46: Selskabets pristalskorrigerede driftsomkostninger i 2015-niveau | C46: =C39+C41 -> 53849969.24 | D46: kr.
B47: Eventuel forhøjelse til effektivt niveau | C47: =IF(C46>C45,0,C45-C46) -> 0 | D47: kr.
B50: Korrektion for generelt effektiviseringskrav
B51: Driftsomkostningerne i prisloftet for 2014 | C51: =C39 -> 53806923.7 | D51: kr.
B52: Generelt effektiviseringskrav | C52: 0.44 | D52: pct.
B53: Endeligt generelt effektiviseringskrav | C53: =C51*(C52/100) -> 236750.4643 | D53: kr.
B56: Korrektion for individuelt effektiviseringskrav
B57: Rå effektiviseringspotentiale | C57: 18278211.82 | D57: kr.
B58: Effektiviseringspotentiale efter eventuel korrektion for særlige forhold | C58: 18278211.82 | D58: kr.
B59: Effektiviseringspotentiale efter forsigtighedshensyn | C59: 11477016.73 | D59: kr.
B60: Effektiviseringspotentiale efter eventuel korrektion for sammensætning af signifikante costdrivere | C60: 11477016.73 | D60: kr.
B61: Umiddelbart effektiviseringskrav | C61: =C60/4 -> 2869254.182 | D61: kr.
B62: Endeligt individuelt effektiviseringskrav | C62: =IF(C61>0.05*C39,0.05*C39,IF(C61<0.01*C39,0,C61)) -> 2690346.185 | D62: kr.

Sheet 4. Historiske investeringer
A1: ='3. Driftsomkostninger'!A1 -> Sønderborg Spildevandsforsyning A/S
B4: Fane 4. Historiske investeringer
B6: Tillæg for historiske investeringer
B7: Værdi af selskabets materielle anlægsaktiver pr. 1. januar 2010 | C7: 3506048027 | D7: kr.
B8: Den årlige standardafskrivning på de materielle anlægsaktiver iht. POLKA | C8: 81308435.54 | D8: kr.
B9: Tillæg i alt i 2015 | C9: =C8 -> 81308435.54 | D9: kr.

Sheet 5. Gennemførte investeringer
A1: ='4. Historiske investeringer'!A1 -> Sønderborg Spildevandsforsyning A/S
B4: Fane 5. Gennemførte investeringer i 2010 - 2013
B6: Tillæg for gennemførte investeringer i 2013
B7: Beskrivelse af investeringen | C7: Årstal | D7: Std. levetid (år) | E7: Anskaffelses-pris (kr.) | F7: Afskrivning
B8: Ø 200 mm < Ledningsnet = Ø 500 mm | C8: 2013 | D8: 75 | E8: 2183891 | F8: =E8/D8 -> 29118.54667 | G8: kr.
B9: Pumpestationer i brønde (< 6,25 m2), Mek/EL | C9: 2013 | D9: 20 | E9: 2105976 | F9: 105298.8 | G9: kr.
B10: Pumpestationer i brønde (< 6,25 m2), SRO | C10: 2013 | D10: 10 | E10: 1043161 | F10: 104316.1 | G10: kr.
B11: Ø 200 mm < Ledningsnet = Ø 500 mm | C11: 2013 | D11: 75 | E11: 86257456 | F11: 1150099.413 | G11: kr.
B12: Strømpeforing Ø 200 mm < Ledningsnet = Ø 500 mm | C12: 2013 | D12: 50 | E12: 2774245 | F12: 55484.9 | G12: kr.
B13: Tryksatte minipumpestationer (husstandssystemer) | C13: 2013 | D13: 30 | E13: 349699 | F13: 11656.63333 | G13: kr.
B14: Pumpestationer i brønde (< 6,25 m2), Mek/EL | C14: 2013 | D14: 20 | E14: 3296276 | F14: 164813.8 | G14: kr.
B15: Pumpestationer i brønde (< 6,25 m2), SRO | C15: 2013 | D15: 10 | E15: 835184 | F15: 83518.4 | G15: kr.
B16: Køretøjer, entreprenørmaskiner | C16: 2013 | D16: 5 | E16: 81000 | F16: 16200 | G16: kr.
B17: Køretøjer, små lastvogne (< 3.500 kg.) | C17: 2013 | D17: 5 | E17: 232446 | F17: 46489.2 | G17: kr.
B18: Køretøjer, store lastvogne (> 3.500 kg.) | C18: 2013 | D18: 5 | E18: 695995 | F18: 139199 | G18: kr.
B19: Køretøjer, store lastvogne (> 3.500 kg.) | C19: 2013 | D19: 5 | E19: 934286 | F19: 186857.2 | G19: kr.
B20: Køretøjer, store lastvogne (> 3.500 kg.) | C20: 2013 | D20: 5 | E20: 2160936 | F20: 432187.2 | G20: kr.
B21: Tillæg for 2013 | F21: =SUM(F8:F20) -> 2525239.193 | G21: kr.
B22: Tillæg for 2010 - 2012 | F22: 4857893.737 | G22: kr.
B23: Samlet tillæg for gennemførte investeringer | F23: =F21+F22 -> 7383132.93 | G23: kr.

Sheet 6. Korrektion investeringer
A1: ='5. Gennemførte investeringer'!A1 -> Sønderborg Spildevandsforsyning A/S
B4: Fane 6. Korrektion af tillæg for planlagte investeringer
B6: Korrektion af tillæg for planlagte investeringer vedr. 2013
B7: Tillæg for planlagte investeringer i 2013 i prisloft 2013 | C7: 2189007 | D7: kr.
B8: Tillæg for planlagte investeringer i 2013 i prisloft 2014 | C8: 2685194 | D8: kr.
B9: Selskabets faktiske afskrivninger på gennemførte investeringer i 2013 | C9: ='5. Gennemførte investeringer'!F21 -> 2525239.193 | D9: kr.
B10: Korrektion af tillæg for planlagte investeringer vedr. 2013 | C10: =C9-C7+C9-C8 -> 176277.3867 | D10: kr.

Sheet 7. Planlagte investeringer
A1: ='6. Korrektion investeringer'!A1 -> Sønderborg Spildevandsforsyning A/S
B4: Fane 7. Planlagte investeringer
B6: Tillæg for planlagte investeringer i 2014 og 2015
B7: Beskrivelse af investeringen | C7: Årstal | D7: Std. levetid (år) | E7: Anskaffelses-pris (kr.) | F7: Afskrivning
B8: Ø 200 mm < Ledningsnet = Ø 500 mm | C8: 2014 | D8: 75 | E8: 75000000 | F8: =E8/D8 -> 1000000 | G8: kr.
B9: Jordbassin Klasse B | C9: 2014 | D9: 50 | E9: 9000000 | F9: =E9/D9 -> 180000 | G9: kr.
B10: Pumpestationer i brønde (< 6,25 m2), Konstruktioner | C10: 2014 | D10: 50 | E10: 6905000 | F10: 138100 | G10: kr.
B11: Køretøjer, små lastvogne (< 3.500 kg.) | C11: 2014 | D11: 5 | E11: 1315000 | F11: 263000 | G11: kr.
B12: Mindre renseanlæg < 5.000 PE uden mulighed for opdeling | C12: 2014 | D12: 40 | E12: 18830000 | F12: 470750 | G12: kr.
B13: Ø 200 mm < Ledningsnet = Ø 500 mm | C13: 2015 | D13: 75 | E13: 75200000 | F13: 1002666.667 | G13: kr.
B14: Jordbassin Klasse B | C14: 2015 | D14: 50 | E14: 15000000 | F14: 300000 | G14: kr.
B15: Pumpestationer i brønde (< 6,25 m2), Konstruktioner | C15: 2015 | D15: 50 | E15: 11781896 | F15: 235637.92 | G15: kr.
B16: Køretøjer, små lastvogne (< 3.500 kg.) | C16: 2015 | D16: 5 | E16: 2243764 | F16: 448752.8 | G16: kr.
B17: Mindre renseanlæg < 5.000 PE uden mulighed for opdeling | C17: 2015 | D17: 40 | E17: 33129340 | F17: 828233.5 | G17: kr.
B18: Tillæg for 2014 | F18: =SUMIF(C8:C17,"2014",F8:F17) -> 2051850 | G18: kr.
B19: Tillæg for 2015 | F19: =SUMIF(C8:C17,"2015",F8:F17) -> 2815290.887 | G19: kr.
B20: Tillæg i alt | F20: =F18+F19 -> 4867140.887 | G20: kr.

Sheet 8. 1-1 omkostninger
A1: ='7. Planlagte investeringer'!A1 -> Sønderborg Spildevandsforsyning A/S
B4: Fane 8. 1:1 omkostninger
B6: Tillæg for budgetterede 1:1 omkostninger i 2015
B7: Betaling til Forsyningssekretariatet | C7: 32490 | D7: kr.
B8: Spildevandsafgift | C8: 1894069 | D8: kr.
B9: Køb af varer og tjenesteydelser hos et andet prisloftreguleret vandselskab | C9: 367117 | D9: kr.
B10: Selskabsskat | C10: 5000000 | D10: kr.
B11: Tjenestemandspensioner | C11: 34882 | D11: kr.
B12: Ejendomsskatter | C12: 258471 | D12: kr.
B13: Tillæg i alt | C13: =SUM(C7:C12) -> 7587029 | D13: kr.
B16: Tillæg for budgetterede nødvendige udgifter til revisorerklæringer samt ordinært medlemskab af DANVA og FVD i 2015
B17: Betaling for ordinært medlemskab af DANVA/FVD | C17: 112800 | D17: kr.
B18: Betaling for revisorerklæringer | C18: 16948 | D18: kr.
B19: Tillæg i alt | C19: =SUM(C17:C18) -> 129748 | D19: kr.
B22: Korrektion af tillæg for faktiske 1:1 omkostninger (inkl. revisorerklæringer og ordinært medlemskab af DANVA/FVD) i 2013
B23: Selskabets faktiske 1:1 omkostninger mv. i 2013, jf. reguleringsregnskabet | C23: 3900485 | D23: kr.
B24: Tillæg for budgetterede 1:1 omkostninger mv. i prisloft 2013 | C24: 2272091 | D24: kr.
B25: Korrektion af tillæg for budgetterede 1:1 omkostninger mv. i 2013 | C25: =C23-C24 -> 1628394 | D25: kr.

Sheet 9. Miljø- og servicemål
A1: ='8. 1-1 omkostninger'!A1 -> Sønderborg Spildevandsforsyning A/S
B4: Fane 9. Driftsomkostninger til miljø- og servicemål
B6: Tillæg for budgetterede driftsomkostninger til miljø- og servicemål i 2015
C7: 0 | D7: kr.
B8: Tillæg i alt | C8: =SUM(C7:C7) -> 0 | D8: kr.
B11: Korrektion af tillæg for faktiske driftsomkostninger til miljø- og servicemål i 2013
B12: Selskabets faktiske driftsomkostninger til miljø- og servicemål i 2013, jf. reguleringsregnskabet | C12: 0 | D12: kr.
B13: Tillæg for budgetterede driftsomkostninger til miljø- og servicemål i prisloft 2013 | C13: 0 | D13: kr.
B14: Korrektion af tillæg for budgetterede driftsomkostninger til miljø- og servicemål i 2013 | C14: =C12-C13 -> 0 | D14: kr.

Sheet 10. Klimatilpasning
A1: ='9. Miljø- og servicemål'!A1 -> Sønderborg Spildevandsforsyning A/S
B4: Fane 10. Medfinansiering af klimatilpasningsprojekter
B7: Tillæg for budgetterede omkostninger til medfinansiering af klimatilpasningsprojekter i 2015
C8: 0 | D8: kr.
B9: Tillæg i alt | C9: =SUM(C8:C8) -> 0 | D9: kr.
B12: Korrektion af tillæg for faktiske omkostninger til medfinansiering af klimatilpasningsprojekter i 2013
B13: Selskabets faktiske driftsomkostninger til klimatilpasningsprojekter i 2013, jf. reguleringsregnskabet | C13: 0 | D13: kr.
B14: Tillæg for budgetterede driftsomkostninger til klimatilpasningsprojekter i prisloft 2013 | C14: 0 | D14: kr.
B15: Korrektion af tillæg for budgetterede omkostninger til klimatilpasningsprojekter i 2013 | C15: =C13-C14 -> 0 | D15: kr.

Sheet 11. Nettofinansielle poster
A1: ='10. Klimatilpasning'!A1 -> Sønderborg Spildevandsforsyning A/S
B4: Fane 11. Nettofinansielle poster
B6: Tillæg for budgetterede nettofinansielle poster i 2015
B7: Budgetterede renteudgifter og gebyrer i 2015 | C7: 1132406 | D7: kr.
B8: Budgetterede renteindtægter i 2015 | C8: 360000 | D8: kr.
B9: Tillæg/fradrag i alt | C9: =C7-C8 -> 772406 | D9: kr.
B12: Korrektion af tillæg for faktiske nettofinansielle poster i 2013
B13: Selskabets faktiske nettofinansielle poster i 2013, jf. reguleringsregnskabet | C13: 171280 | D13: kr.
B14: Tillæg for budgetterede nettofinansielle poster i prisloft 2013 | C14: -5000 | D14: kr.
B15: Korrektion af tillæg for budgetterede nettofinansielle poster i 2013 | C15: =C13-C14 -> 176280 | D15: kr.

Sheet 12. Over- eller underdækning
A1: ='11. Nettofinansielle poster'!A1 -> Sønderborg Spildevandsforsyning A/S
B4: Fane 12. Over- eller underdækning til og med 2010
B6: Tillæg/fradrag for over- eller underdækning til og med 2010
B7: Opgjort over- eller underdækning per 31. december 2010 | C7: 14631808 | D7: kr.
B8: Heraf beløb indregnet i prislofterne for 2011 - 2014 | C8: 2416845.254 | D8: kr.
B9: Endnu ikke indregnet over- eller underdækning | C9: =C7-C8 -> 12214962.75 | D9: kr.
B10: Resterende indregningsperiode (fastsat i prisloftet for 2012) | C10: 6 | D10: år
B11: Tillæg/fradrag i alt | C11: =IF(C7=0,0,C9/C10) -> 2035827.124 | D11: kr.

Sheet 13. Kontrol med indtægtsrammen
A1: ='12. Over- eller underdækning'!A1 -> Sønderborg Spildevandsforsyning A/S
B4: Fane 13. Korrektion for overholdelse af indtægtsrammen i prisloftet for 2013
B6: Samlet opgørelse vedrørende overholdelse af indtægtsrammen i prisloftet for 2013
B7: Indtægtsramme i prisloftet for 2013 | E7: 166016000.5 | F7: kr.
B8: Ikke anvendt likviditet vedrørende investeringer i 2013
B9: Tillæg for historiske investeringer | C9: 81777372.21 | D9: kr.
B10: Tillæg for gennemførte investeringer i 2011 | C10: 5702589 | D10: kr.
B11: Korrektion af tillæg for planlagte investeringer i 2011 | C11: 1601779 | D11: kr.
B12: Tillæg for planlagte investeringer i 2012 og 2013 | C12: 3921968 | D12: kr.
B13: Indtægter fra tilslutningsbidrag | C13: 9152448 | D13: kr.
B14: Indtægter fra salg af anlægsaktiver | C14: 192165 | D14: kr.
B15: Erstatninger vedr. anlægsaktiver mv. | C15: 0 | D15: kr.
B16: Ekstraordinær effektiviseringsgevinst anvendt til investeringer | C16: 12709280.54 | D16: kr.
B17: Udgifter til investeringer | C17: -99006186 | D17: kr.
B18: Ikke anvendt likviditet vedr. investeringer i alt | C18: =SUM(C9:C17) -> 16051415.75 | D18: kr. | E18: =IF(C18<0,0,-C18) -> -16051415.75 | F18: kr.
B19: Ekstraordinære effektiviseringsgevinster anvendt til takstnedsættelse
B20: Ekstraordinær effektiviseringsgevinst anvendt til takstnedsættelse | C20: 0 | D20: kr. | E20: =-C20 -> 0 | F20: kr.
B21: Korrektion af ikke opkrævet tillæg fra 2011 i prisloft 2013
B22: Korrektion af ikke opkrævet tillæg fra 2011 i prisloft 2013 | C22: 0 | D22: kr. | E22: =-C22 -> 0 | F22: kr.
B23: Indtægter fra primære aktiviteter mv.
B24: Indtægter fra kubikmetertakster, faste takster, særbidrag, målergebyrer samt andre takster og gebyrer | C24: 123424523 | D24: kr.
B25: Andre indtægter i prisloftåret, som selskabet har opnået i forbindelse med eller som følge af selskabets primære aktiviteter | C25: 0 | D25: kr.
B26: Indtægter fra primære aktiviteter mv. i alt | C26: =SUM(C24:C25) -> 123424523 | D26: kr. | E26: =-C26 -> -123424523 | F26: kr.
B27: Tillæg/fradrag i prisloftet for 2015 i alt | E27: =E7+E18+E20+E22+E26 -> 26540061.7 | F27: kr.
B31: Oversigt over ekstraordinære effektiviseringsgevinster
C33: 2012 | E33: 2013 | G33: 2014 | I33: 2015 | K33: 2016
B34: Indhentet ekstraordinær effektiviseringsgevinst | C34: 3005143 | D34: kr. | E34: 9704137.54 | F34: kr. | H34: kr. | J34: kr. | L34: kr.
B35: Gevinst anvendt til investeringer | C35: 0 | D35: kr. | E35: =C38+E34 -> 12709280.54 | F35: kr. | H35: kr. | J35: kr. | L35: kr.
B36: Gevinst anvendt til takstnedsættelse | C36: 0 | D36: kr. | E36: 0 | F36: kr. | H36: kr. | J36: kr. | L36: kr.
B37: Korrektion for effektiviseringsgevinst der ikke er anvendt inden 4 år | C37: 0 | D37: kr. | E37: 0 | F37: kr. | H37: kr. | J37: kr. | K37: =IF(C38>SUM(E35:I36),C38-SUM(E35:I36),0)*-1 -> 0 | L37: kr.
B38: Resterende gevinst | C38: =C34-C35-C36 -> 3005143 | D38: kr. | E38: =C38+E34-E35-E36 -> 0 | F38: kr. | G38: =E38+G34-G35-G36 -> 0 | H38: kr. | I38: =G38+I34-I35-I36 -> 0 | J38: kr. | K38: =K34-K35-K36+K37+I38 -> 0 | L38: kr.
